fUSD/lending_fUSD_20250811
["ID","MTS","AMOUNT","RATE_DAILY","PERIOD"]
[378490693,1754886650194,-150.0,0.00016999,2]
[378490694,1754886650203,-5336.15,0.00016999,2]
[378490695,1754886650213,-400.0,0.00016999,2]
[378490696,1754886650223,-405.79912736,0.00016999,2]
[378490697,1754886650233,-464.15149189,0.00016999,2]
[378490698,1754886650243,-1189.6,0.00016999,2]
[378490699,1754886650260,-817.46,0.00016999,2]
[378490700,1754886650272,-400.0,0.00016999,2]
[378490701,1754886650282,-400.0,0.00016999,2]
[378490702,1754886650292,-400.0,0.00016999,2]
[378490703,1754886650303,-706.28,0.00016999,2]
[378490704,1754886650313,-1139701.91382516,0.00017,2]
[378490705,1754886650322,-9045294.04595036,0.00017,2]
[378490706,1754886650332,-14209878.76521334,0.00017,2]
[378490707,1754886650342,-173.27,0.00017,2]
[378490708,1754886650352,-173.27,0.00017,2]
[378490709,1754886650362,-359.87,0.00017,2]
[378490710,1754886650372,-150.0,0.00017,2]
[378490711,1754886650382,-359.87,0.00017,2]
[378490712,1754886650392,-173.27,0.00017,2]
[378490713,1754886650402,-158.31389046,0.00017,2]
[378490714,1754886650413,-73893.68208315,0.00017,2]
[378490715,1754886650423,-178.0,0.00017,2]
[378490716,1754886650433,-500.0,0.00017004,2]
[378490717,1754886650444,-150.0,0.00017029,2]
[378490718,1754886650454,-150.0,0.00017029,2]
[378490719,1754886650464,-150.0,0.00017029,2]
[378490720,1754886650475,-150.0,0.00017029,2]
[378490721,1754886650485,-201.27594546,0.00017029,2]
[378490722,1754886650495,-500.0,0.00017059,2]
[378490723,1754886650505,-161.26,0.00017078,2]
[378490724,1754886650515,-359.87,0.000171,2]
[378490725,1754886650525,-173.27,0.000171,2]
[378490726,1754886650535,-150.0,0.000171,2]
[378490727,1754886650545,-320.96,0.000171,2]
[378490728,1754886650555,-165.73,0.000171,2]
[378490729,1754886650565,-317.19,0.000171,2]
[378490730,1754886650575,-165.73,0.000171,2]
[378490731,1754886650588,-359.87,0.000171,2]
[378490732,1754886650598,-173.27,0.000171,2]
[378490733,1754886650607,-150.0,0.000171,2]
[378490734,1754886650618,-359.87,0.000171,2]
[378490735,1754886650627,-165.73,0.000171,2]
[378490736,1754886650638,-500.0,0.00017114,2]
[378490737,1754886650648,-467.96,0.00017117,2]
[378490738,1754886650659,-238.93,0.00017139,2]
[378490739,1754886650669,-828.55,0.00017169,2]
[378490740,1754886650679,-1186.71,0.00017169,2]
[378490741,1754886650688,-400.0,0.00017169,2]
[378490742,1754886650698,-400.0,0.00017169,2]
[378490743,1754886650708,-1147.62,0.00017169,2]
[378490744,1754886650717,-400.0,0.00017169,2]
[378490745,1754886650727,-1449.09,0.00017169,2]
[378490746,1754886650737,-400.0,0.00017169,2]
[378490747,1754886650747,-400.0,0.00017169,2]
[378490748,1754886650756,-403.39,0.00017169,2]
[378490749,1754886650766,-1645.25,0.00017169,2]
[378490750,1754886650775,-400.0,0.00017169,2]
[378490751,1754886650785,-479.53,0.00017169,2]
[378490752,1754886650795,-400.0,0.00017169,2]
[378490753,1754886650804,-400.0,0.00017169,2]
[378490754,1754886650814,-400.0,0.00017169,2]
[378490755,1754886650823,-400.0,0.00017169,2]
[378490756,1754886650833,-400.0,0.00017169,2]
[378490757,1754886650842,-400.0,0.00017169,2]
[378490758,1754886650852,-400.0,0.00017169,2]
[378490759,1754886650862,-400.0,0.00017169,2]
[378490760,1754886650871,-400.0,0.00017169,2]
[378490761,1754886650881,-401.99550419,0.00017169,2]
[378490762,1754886650891,-1000.0,0.00017203,2]
[378490763,1754886650900,-500.0,0.00017203,2]
[378490764,1754886650910,-300.0,0.00017215,2]
[378490765,1754886650920,-420.0,0.00017215,2]
[378490766,1754886650929,-209.57,0.00017244,2]
[378490767,1754886650939,-1506.75,0.00017246,2]
[378490768,1754886650948,-2092.88,0.00017246,2]
[378490769,1754886650961,-1484.73,0.00017246,2]
[378490770,1754886650971,-1352.34,0.00017246,2]
[378490771,1754886650981,-7378.0,0.00017246,2]
[378490772,1754886650991,-1869.19,0.00017246,2]
[378490773,1754886651000,-2590.55,0.00017246,2]
[378490774,1754886651010,-4686.95,0.00017246,2]
[378490775,1754886651020,-3658.33,0.00017246,2]
[378490776,1754886651030,-887.4206,0.0001725,2]
[378490777,1754886651039,-887.42061,0.0001725,2]
[378490778,1754886651049,-887.4206,0.0001725,2]
[378490779,1754886651059,-887.4206,0.0001725,2]
[378490780,1754886651069,-887.4206,0.0001725,2]
[378490781,1754886651079,-487.31868,0.0001725,2]
[378490782,1754886651089,-309.83457,0.0001725,2]
[378490783,1754886651099,-150.0,0.00017256,2]
[378490784,1754886651110,-325.19827488,0.00017256,2]
[378490785,1754886651120,-414.46838955,0.00017257,2]
[378490786,1754886651130,-503.73850422,0.00017258,2]
[378490787,1754886651140,-593.00861889,0.00017259,2]
[378490788,1754886651151,-682.27873356,0.0001726,2]
[378490789,1754886651161,-771.54884823,0.0001726,2]
[378490790,1754886651171,-860.81896291,0.00017261,2]
[378490791,1754886651181,-950.08907758,0.00017262,2]
[378490792,1754886651191,-1039.35919225,0.00017263,2]
[378490793,1754886651201,-522.22540168,0.00017271,2]
[378490794,1754886651211,-530.39844865,0.00017271,2]
[378490795,1754886651221,-527.59614528,0.00017271,2]
[378490796,1754886651231,-400.0,0.00017271,2]
[378490797,1754886651241,-1669.89,0.00017271,2]
[378490798,1754886651251,-747.03,0.00017271,2]
[378490799,1754886651262,-2364.88,0.00017271,2]
[378490800,1754886651271,-400.0,0.00017271,2]
[378490801,1754886651282,-2423.22,0.00017271,2]
[378490802,1754886651291,-1881.34,0.00017271,2]
[378490803,1754886651301,-1965.12,0.00017271,2]
[378490804,1754886651312,-1429.66,0.00017271,2]
[378490805,1754886651322,-1438.72,0.00017271,2]
[378490806,1754886651332,-1146.62,0.00017271,2]
[378490807,1754886651342,-2833.62,0.00017271,2]
[378490808,1754886651352,-782.18,0.00017271,2]
[378490809,1754886651362,-374.78151713,0.00017272,2]
[378490810,1754886651372,-400.0,0.00017272,2]
[378490811,1754886651382,-617.49,0.00017272,2]
[378490812,1754886651392,-400.0,0.00017272,2]
[378490813,1754886651402,-400.0,0.00017272,2]
[378490814,1754886651412,-400.0,0.00017272,2]
[378490815,1754886651423,-400.0,0.00017272,2]
[378490816,1754886651433,-400.0,0.00017272,2]
[378490817,1754886651443,-400.0,0.00017272,2]
[378490818,1754886651452,-1019.54,0.00017272,2]
[378490819,1754886651463,-262.68319736,0.00017272,2]
[378490820,1754886651472,-1059.04,0.00017272,2]
[378490821,1754886651486,-400.0,0.00017272,2]
[378490822,1754886651496,-400.0,0.00017272,2]
[378490823,1754886651507,-865.35,0.00017272,2]
[378490824,1754886651516,-400.0,0.00017272,2]
[378490825,1754886651526,-400.0,0.00017272,2]
[378490826,1754886651536,-2310.21,0.00017272,2]
[378490827,1754886651546,-400.0,0.00017272,2]
[378490828,1754886651557,-400.0,0.00017272,2]
[378490829,1754886651567,-1030.57,0.00017272,2]
[378490830,1754886651578,-400.0,0.00017272,2]
[378490831,1754886651591,-898.11,0.00017272,2]
[378490832,1754886651600,-400.0,0.00017272,2]
[378490833,1754886651611,-474.3,0.00017272,2]
[378490834,1754886651620,-400.0,0.00017272,2]
[378490835,1754886651630,-445.35,0.00017272,2]
[378490836,1754886651640,-754.81,0.00017272,2]
[378490837,1754886651650,-400.0,0.00017272,2]
[378490838,1754886651660,-780.7,0.00017272,2]
[378490839,1754886651670,-600.96,0.00017272,2]
[378490840,1754886651680,-401.9255145,0.00017272,2]
[378490841,1754886651690,-822.971514,0.00017272,2]
[378490842,1754886651700,-830.43,0.00017272,2]
[378490843,1754886651709,-400.0,0.00017272,2]
[378490844,1754886651719,-400.0,0.00017272,2]
[378490845,1754886651729,-906.92,0.00017272,2]
[378490846,1754886651739,-452.87,0.00017272,2]
[378490847,1754886651748,-905.61,0.00017272,2]
[378490848,1754886651758,-400.0,0.00017272,2]
[378490849,1754886651768,-400.0,0.00017272,2]
[378490850,1754886651778,-779.35,0.00017272,2]
[378490851,1754886651787,-414.38986336,0.00017272,2]
[378490852,1754886651797,-400.0,0.00017272,2]
[378490853,1754886651807,-872.521428,0.00017272,2]
[378490854,1754886651816,-400.0,0.00017272,2]
[378490855,1754886651826,-515.391656,0.00017272,2]
[378490856,1754886651835,-1163.2,0.00017272,2]
[378490857,1754886651845,-400.0,0.00017272,2]
[378490858,1754886651855,-911.89,0.00017272,2]
[378490859,1754886651865,-801.19,0.00017272,2]
[378490860,1754886651874,-440.36,0.00017272,2]
[378490861,1754886651884,-1277.31,0.00017272,2]
[378490862,1754886651894,-492.3032167,0.00017272,2]
[378490863,1754886651903,-489.13654852,0.00017272,2]
[378490864,1754886651914,-514.07,0.00017272,2]
[378490865,1754886651924,-868.29,0.00017272,2]
[378490866,1754886651933,-668.83,0.00017272,2]
[378490867,1754886651943,-220.0,0.00017272,2]
[378490868,1754886651953,-1375.88,0.00017272,2]
[378490869,1754886651962,-577.53,0.00017272,2]
[378490870,1754886651972,-400.0,0.00017272,2]
[378490871,1754886651982,-8456.03,0.00017272,2]
[378490872,1754886651991,-400.0,0.00017272,2]
[378490873,1754886652001,-400.0,0.00017272,2]
[378490874,1754886652010,-400.0,0.00017272,2]
[378490875,1754886652019,-404.23404948,0.00017272,2]
[378490876,1754886652032,-649.48,0.00017272,2]
[378490877,1754886652042,-1680.21,0.00017272,2]
[378490878,1754886652051,-1049.17,0.00017272,2]
[378490879,1754886652061,-400.0,0.00017272,2]
[378490880,1754886652070,-400.0,0.00017272,2]
[378490881,1754886652080,-951.39,0.00017272,2]
[378490882,1754886652090,-454.86,0.00017272,2]
[378490883,1754886652100,-824.89,0.00017272,2]
[378490884,1754886652110,-407.63,0.00017272,2]
[378490885,1754886652119,-585.0,0.00017272,2]
[378490886,1754886652129,-400.0,0.00017272,2]
[378490887,1754886652139,-400.0,0.00017272,2]
[378490888,1754886652149,-1455.85,0.00017272,2]
[378490889,1754886652159,-400.0,0.00017272,2]
[378490890,1754886652168,-400.0,0.00017272,2]
[378490891,1754886652178,-400.0,0.00017272,2]
[378490892,1754886652188,-400.0,0.00017272,2]
[378490893,1754886652198,-769.24,0.00017272,2]
[378490894,1754886652208,-400.0,0.00017272,2]
[378490895,1754886652218,-2199.58,0.00017272,2]
[378490896,1754886652228,-400.0,0.00017272,2]
[378490897,1754886652238,-655.83,0.00017272,2]
[378490898,1754886652247,-400.0,0.00017272,2]
[378490899,1754886652257,-668.14,0.00017272,2]
[378490900,1754886652267,-2114.03,0.00017272,2]
[378490901,1754886652277,-410.79,0.00017272,2]
[378490902,1754886652287,-717.01,0.00017272,2]
[378490903,1754886652298,-526.86,0.00017272,2]
[378490904,1754886652307,-1612.96,0.00017272,2]
[378490905,1754886652317,-1228.52,0.00017272,2]
[378490906,1754886652327,-400.0,0.00017272,2]
[378490907,1754886652336,-2955.4,0.00017272,2]
[378490908,1754886652347,-2031.05,0.00017272,2]
[378490909,1754886652357,-400.0,0.00017272,2]
[378490910,1754886652367,-882.39,0.00017272,2]
[378490911,1754886652377,-1330.79,0.00017272,2]
[378490912,1754886652387,-400.0,0.00017272,2]
[378490913,1754886652396,-400.0,0.00017272,2]
[378490914,1754886652406,-1272.39,0.00017272,2]
[378490915,1754886652416,-715.05,0.00017272,2]
[378490916,1754886652426,-8173.14,0.00017272,2]
[378490917,1754886652436,-1781.66,0.00017272,2]
[378490918,1754886652447,-477.68,0.00017272,2]
[378490919,1754886652457,-1122.75,0.00017272,2]
[378490920,1754886652467,-401.67816881,0.00017272,2]
[378490921,1754886652477,-1331.68,0.00017272,2]
[378490922,1754886652488,-400.93831374,0.00017272,2]
[378490923,1754886652498,-888.75,0.00017272,2]
[378490924,1754886652508,-400.0,0.00017272,2]
[378490925,1754886652518,-400.0,0.00017272,2]
[378490926,1754886652528,-400.0,0.00017272,2]
[378490927,1754886652537,-400.0,0.00017272,2]
[378490928,1754886652547,-2038.29,0.00017272,2]
[378490929,1754886652559,-400.0,0.00017272,2]
[378490930,1754886652568,-403.00421894,0.00017272,2]
[378490931,1754886652581,-554.01,0.00017272,2]
[378490932,1754886652591,-651.43,0.00017272,2]
[378490933,1754886652600,-1369.36,0.00017272,2]
[378490934,1754886652611,-1339.24,0.00017272,2]
[378490935,1754886652621,-400.0,0.00017272,2]
[378490936,1754886652631,-1803.47,0.00017272,2]
[378490937,1754886652937,-1113.52,0.00017272,2]
[378490938,1754886652970,-400.0,0.00017272,2]
[378490939,1754886652979,-401.07369387,0.00017272,2]
[378490940,1754886652989,-402.04810351,0.00017272,2]
[378490941,1754886652998,-400.0,0.00017272,2]
[378490942,1754886653007,-2663.6,0.00017272,2]
[378490943,1754886653017,-3713.7,0.00017272,2]
[378490944,1754886653026,-1153.98,0.00017272,2]
[378490945,1754886653035,-1944.28,0.00017272,2]
[378490946,1754886653045,-400.0,0.00017272,2]
[378490947,1754886653054,-400.0,0.00017272,2]
[378490948,1754886653064,-400.0,0.00017272,2]
[378490949,1754886653074,-1435.98,0.00017272,2]
[378490950,1754886653083,-477.92811248,0.00017272,2]
[378490951,1754886653093,-400.0,0.00017272,2]
[378490952,1754886653102,-402.64961067,0.00017272,2]
[378490953,1754886653112,-400.0,0.00017272,2]
[378490954,1754886653122,-400.0,0.00017272,2]
[378490955,1754886653131,-2243.73,0.00017272,2]
[378490956,1754886653140,-3812.9,0.00017272,2]
[378490957,1754886653150,-400.0,0.00017272,2]
[378490958,1754886653161,-400.0,0.00017272,2]
[378490959,1754886653171,-592.95,0.00017272,2]
[378490960,1754886653181,-400.0,0.00017272,2]
[378490961,1754886653191,-235.96286017,0.00017272,2]
[378490962,1754886653200,-400.0,0.00017272,2]
[378490963,1754886653210,-400.0,0.00017272,2]
[378490964,1754886653219,-400.0,0.00017272,2]
[378490965,1754886653229,-400.0,0.00017272,2]
[378490966,1754886653239,-1891.0,0.00017272,2]
[378490967,1754886653248,-307.53012104,0.00017272,2]
[378490968,1754886653257,-400.0,0.00017272,2]
[378490969,1754886653267,-401.57774578,0.00017272,2]
[378490970,1754886653276,-400.0,0.00017272,2]
[378490971,1754886653286,-1087.1,0.00017272,2]
[378490972,1754886653296,-1589.93,0.00017272,2]
[378490973,1754886653306,-400.0,0.00017272,2]
[378490974,1754886653316,-1124.67,0.00017272,2]
[378490975,1754886653326,-400.0,0.00017272,2]
[378490976,1754886653335,-2878.68,0.00017272,2]
[378490977,1754886653344,-495.91,0.00017272,2]
[378490978,1754886653354,-400.0,0.00017272,2]
[378490979,1754886653363,-950.56,0.00017272,2]
[378490980,1754886653372,-1307.49,0.00017272,2]
[378490981,1754886653382,-400.0,0.00017272,2]
[378490982,1754886653392,-2695.27,0.00017272,2]
[378490983,1754886653401,-856.38,0.00017272,2]
[378490984,1754886653410,-404.26041613,0.00017272,2]
[378490985,1754886653420,-739.41,0.00017272,2]
[378490986,1754886653429,-1363.59,0.00017272,2]
[378490987,1754886653438,-855.45,0.00017272,2]
[378490988,1754886653448,-812.2,0.00017272,2]
[378490989,1754886653457,-5196.27,0.00017272,2]
[378490990,1754886653466,-400.0,0.00017272,2]
[378490991,1754886653476,-5397.17,0.00017272,2]
[378490992,1754886653485,-1486.27,0.00017272,2]
[378490993,1754886653494,-1285.96,0.00017272,2]
[378490994,1754886653504,-403.43258121,0.00017272,2]
[378490995,1754886653514,-1895.73,0.00017272,2]
[378490996,1754886653524,-2798.96,0.00017272,2]
[378490997,1754886653543,-400.0,0.00017272,2]
[378490998,1754886653554,-806.53,0.00017272,2]
[378490999,1754886653563,-400.0,0.00017272,2]
[378491000,1754886653573,-1274.2,0.00017272,2]
[378491001,1754886653585,-1651.76,0.00017272,2]
[378491002,1754886653595,-400.0,0.00017272,2]
[378491003,1754886653604,-1256.2,0.00017272,2]
[378491004,1754886653614,-635.75,0.00017272,2]
[378491005,1754886653623,-849.98,0.00017272,2]
[378491006,1754886653633,-400.0,0.00017272,2]
[378491007,1754886653645,-400.0,0.00017272,2]
[378491008,1754886653664,-507.68,0.00017272,2]
[378491009,1754886653675,-3620.19,0.00017272,2]
[378491010,1754886653684,-538.52,0.00017272,2]
[378491011,1754886653694,-400.0,0.00017272,2]
[378491012,1754886653703,-1287.03,0.00017272,2]
[378491013,1754886653713,-539.41,0.00017272,2]
[378491014,1754886653724,-400.0,0.00017272,2]
[378491015,1754886653734,-675.45,0.00017272,2]
[378491016,1754886653743,-1583.18,0.00017272,2]
[378491017,1754886653753,-701.46,0.00017272,2]
[378491018,1754886653763,-403.38697008,0.00017272,2]
[378491019,1754886653773,-400.0,0.00017272,2]
[378491020,1754886653785,-400.0,0.00017272,2]
[378491021,1754886653795,-300.0,0.00017272,2]
[378491022,1754886653804,-300.0,0.00017272,2]
[378491023,1754886653814,-265.36140729,0.00017273,2]
[378491024,1754886653823,-400.0,0.00017273,2]
[378491025,1754886653833,-470.2,0.00017273,2]
[378491026,1754886653843,-400.0,0.00017273,2]
[378491027,1754886653853,-406.85,0.00017273,2]
[378491028,1754886653862,-403.63278534,0.00017273,2]
[378491029,1754886653872,-420.6275953,0.00017273,2]
[378491030,1754886653882,-400.0,0.00017273,2]
[378491031,1754886653891,-400.0,0.00017273,2]
[378491032,1754886653902,-400.0,0.00017273,2]
[378491033,1754886653912,-711.84,0.00017273,2]
[378491034,1754886653921,-400.0,0.00017273,2]
[378491035,1754886653931,-400.0,0.00017273,2]
[378491036,1754886653940,-400.0,0.00017273,2]
[378491037,1754886653950,-400.0,0.00017273,2]
[378491038,1754886653959,-400.0,0.00017273,2]
[378491039,1754886653969,-524.02,0.00017273,2]
[378491040,1754886653979,-400.0,0.00017273,2]
[378491041,1754886653989,-604.75,0.00017273,2]
[378491042,1754886654001,-599.12,0.00017273,2]
[378491043,1754886654011,-400.0,0.00017273,2]
[378491044,1754886654022,-400.0,0.00017273,2]
[378491045,1754886654032,-400.0,0.00017273,2]
[378491046,1754886654042,-449.7861853,0.00017273,2]
[378491047,1754886654052,-982.92,0.00017273,2]
[378491048,1754886654061,-400.0,0.00017273,2]
[378491049,1754886654071,-400.0,0.00017273,2]
[378491050,1754886654081,-766.83,0.00017273,2]
[378491051,1754886654090,-400.0,0.00017273,2]
[378491052,1754886654100,-400.0,0.00017273,2]
[378491053,1754886654109,-442.27,0.00017273,2]
[378491054,1754886654119,-502.43,0.00017273,2]
[378491055,1754886654128,-443.75,0.00017273,2]
[378491056,1754886654139,-400.0,0.00017273,2]
[378491057,1754886654148,-593.67,0.00017273,2]
[378491058,1754886654158,-400.0,0.00017273,2]
[378491059,1754886654168,-400.0,0.00017273,2]
[378491060,1754886654178,-400.0,0.00017273,2]
[378491061,1754886654188,-400.0,0.00017273,2]
[378491062,1754886654197,-400.0,0.00017273,2]
[378491063,1754886654207,-400.0,0.00017273,2]
[378491064,1754886654216,-400.0,0.00017273,2]
[378491065,1754886654226,-400.0,0.00017273,2]
[378491066,1754886654236,-400.0,0.00017273,2]
[378491067,1754886654246,-404.79003473,0.00017273,2]
[378491068,1754886654255,-400.0,0.00017273,2]
[378491069,1754886654265,-400.0,0.00017273,2]
[378491070,1754886654275,-400.0,0.00017273,2]
[378491071,1754886654284,-400.0,0.00017273,2]
[378491072,1754886654293,-984.1,0.00017273,2]
[378491073,1754886654303,-400.0,0.00017273,2]
[378491074,1754886654312,-402.61739546,0.00017273,2]
[378491075,1754886654321,-400.0,0.00017273,2]
[378491076,1754886654330,-400.0,0.00017273,2]
[378491077,1754886654340,-400.0,0.00017273,2]
[378491078,1754886654349,-398.61487412,0.00017273,2]
[378491079,1754886654359,-530.59,0.00017273,2]
[378491080,1754886654368,-400.0,0.00017273,2]
[378491081,1754886654378,-400.0,0.00017273,2]
[378491082,1754886654387,-408.13,0.00017273,2]
[378491083,1754886654396,-796.23,0.00017273,2]
[378491084,1754886654406,-400.0,0.00017273,2]
[378491085,1754886654416,-459.01,0.00017273,2]
[378491086,1754886654425,-158.86847076,0.00017273,2]
[378491087,1754886654434,-1031.28,0.00017273,2]
[378491088,1754886654444,-232.55167138,0.00017273,2]
[378491089,1754886654453,-402.86350064,0.00017273,2]
[378491090,1754886654462,-400.0,0.00017273,2]
[378491091,1754886654471,-490.33,0.00017273,2]
[378491092,1754886654481,-562.38,0.00017273,2]
[378491093,1754886654490,-400.0,0.00017273,2]
[378491094,1754886654499,-403.40453937,0.00017273,2]
[378491095,1754886654509,-589.46,0.00017273,2]
[378491096,1754886654518,-400.0,0.00017273,2]
[378491097,1754886654527,-400.0,0.00017273,2]
[378491098,1754886654537,-435.55,0.00017273,2]
[378491099,1754886654546,-400.0,0.00017273,2]
[378491100,1754886654556,-498.17,0.00017273,2]
[378491101,1754886654565,-400.0,0.00017273,2]
[378491102,1754886654576,-402.96061166,0.00017273,2]
[378491103,1754886654588,-400.0,0.00017273,2]
[378491104,1754886654597,-516.64382036,0.00017273,2]
[378491105,1754886654607,-283.34916505,0.00017273,2]
[378491106,1754886654616,-498.63,0.00017273,2]
[378491107,1754886654627,-400.0,0.00017273,2]
[378491108,1754886654636,-400.0,0.00017273,2]
[378491109,1754886654645,-413.61548608,0.00017273,2]
[378491110,1754886654656,-409.56,0.00017273,2]
[378491111,1754886654666,-400.0,0.00017273,2]
[378491112,1754886654675,-403.83202441,0.00017273,2]
[378491113,1754886654685,-567.63,0.00017273,2]
[378491114,1754886654694,-690.83,0.00017273,2]
[378491115,1754886654704,-400.0,0.00017273,2]
[378491116,1754886654714,-403.2774582,0.00017273,2]
[378491117,1754886654723,-416.09198416,0.00017273,2]
[378491118,1754886654733,-400.0,0.00017273,2]
[378491119,1754886654742,-400.0,0.00017273,2]
[378491120,1754886654756,-400.0,0.00017273,2]
[378491121,1754886654766,-400.0,0.00017273,2]
[378491122,1754886654775,-458.89227167,0.00017273,2]
[378491123,1754886654785,-710.53,0.00017273,2]
[378491124,1754886654795,-400.0,0.00017273,2]
[378491125,1754886654804,-404.10905706,0.00017273,2]
[378491126,1754886654814,-436.05,0.00017273,2]
[378491127,1754886654823,-400.0,0.00017273,2]
[378491128,1754886654833,-400.0,0.00017273,2]
[378491129,1754886654842,-400.0,0.00017273,2]
[378491130,1754886654851,-400.0,0.00017273,2]
[378491131,1754886654861,-400.0,0.00017273,2]
[378491132,1754886654871,-400.0,0.00017273,2]
[378491133,1754886654880,-400.0,0.00017273,2]
[378491134,1754886654890,-400.0,0.00017273,2]
[378491135,1754886654900,-400.0,0.00017273,2]
[378491136,1754886654910,-400.0,0.00017273,2]
[378491137,1754886654920,-400.0,0.00017273,2]
[378491138,1754886654929,-400.0,0.00017273,2]
[378491139,1754886654939,-502.26,0.00017273,2]
[378491140,1754886654948,-400.0,0.00017273,2]
[378491141,1754886654958,-400.0,0.00017273,2]
[378491142,1754886654970,-400.0,0.00017273,2]
[378491143,1754886654980,-403.34544017,0.00017273,2]
[378491144,1754886654990,-400.0,0.00017273,2]
[378491145,1754886654999,-564.3,0.00017273,2]
[378491146,1754886655011,-400.0,0.00017273,2]
[378491147,1754886655021,-400.0,0.00017273,2]
[378491148,1754886655031,-400.0,0.00017273,2]
[378491149,1754886655042,-400.0,0.00017273,2]
[378491150,1754886655052,-400.0,0.00017273,2]
[378491151,1754886655063,-400.0,0.00017273,2]
[378491152,1754886655073,-400.0,0.00017273,2]
[378491153,1754886655084,-400.0,0.00017273,2]
[378491154,1754886655095,-400.0,0.00017273,2]
[378491155,1754886655107,-400.0,0.00017273,2]
[378491156,1754886655116,-400.0,0.00017273,2]
[378491157,1754886655125,-400.0,0.00017273,2]
[378491158,1754886655134,-400.0,0.00017273,2]
[378491159,1754886655144,-638.71,0.00017273,2]
[378491160,1754886655154,-400.0,0.00017273,2]
[378491161,1754886655163,-242.65033189,0.00017273,2]
[378491162,1754886655173,-512.9,0.00017273,2]
[378491163,1754886655183,-401.37630403,0.00017273,2]
[378491164,1754886655192,-400.0,0.00017273,2]
[378491165,1754886655201,-1168.39,0.00017273,2]
[378491166,1754886655210,-816.18,0.00017273,2]
[378491167,1754886655220,-400.0,0.00017273,2]
[378491168,1754886655229,-400.0,0.00017273,2]
[378491169,1754886655239,-400.0,0.00017273,2]
[378491170,1754886655248,-1319.27,0.00017273,2]
[378491171,1754886655258,-400.0,0.00017273,2]
[378491172,1754886655267,-400.0,0.00017273,2]
[378491173,1754886655277,-848.1,0.00017273,2]
[378491174,1754886655286,-1000.0,0.00017273,2]
[378491175,1754886655296,-452.23,0.00017273,2]
[378491176,1754886655306,-763.33,0.00017273,2]
[378491177,1754886655315,-400.0,0.00017273,2]
[378491178,1754886655324,-400.0,0.00017273,2]
[378491179,1754886655334,-400.0,0.00017273,2]
[378491180,1754886655344,-400.0,0.00017273,2]
[378491181,1754886655354,-400.0,0.00017273,2]
[378491182,1754886655364,-400.0,0.00017273,2]
[378491183,1754886655374,-400.0,0.00017273,2]
[378491184,1754886655384,-400.0,0.00017273,2]
[378491185,1754886655395,-534.83,0.00017273,2]
[378491186,1754886655405,-1432.31,0.00017273,2]
[378491187,1754886655415,-400.0,0.00017273,2]
[378491188,1754886655424,-400.0,0.00017273,2]
[378491189,1754886655433,-400.0,0.00017273,2]
[378491190,1754886655444,-400.0,0.00017273,2]
[378491191,1754886655454,-1096.29,0.00017273,2]
[378491192,1754886655464,-481.17,0.00017273,2]